[Event "RUS-ch Men Blitz 2019"]
[Site "Sochi"]
[Date "2019.10.17"]
[Round "7.5"]
[White "Bocharov, Dmitry"]
[Black "Shimanov, Aleksandr"]
[Result "1-0"]
[ECO "A33"]
[WhiteElo "2519"]
[BlackElo "2587"]
[Annotator "RC"]
[PlyCount "92"]
[EventDate "2019.10.17"]
[EventType "swiss"]
[EventCountry "RUS"]
[SourceTitle "playchess.com"]
[Source "ChessBase"]
[SourceQuality "1"]
[TimeControl "180+2"]

1. c4 {[%emt 0:00:00]} c5 {[%emt 0:00:01]} 2. Nf3 {[%emt 0:00:03]} Nf6 {[%emt 0:00:07]} 3. Nc3 {[%emt 0:00:09]} Nc6 {[%emt 0:00:02]} 4. d4 {[%emt 0:00:02]} cxd4 {[%emt 0:00:02]} 5. Nxd4 {[%emt 0:00:01]} e6 {[%emt 0:00:02]} 6. a3 {[%emt 0:00:06]} Be7 {[%emt 0:00:05]} 7. e4 {[%emt 0:00:12]} O-O {[%emt 0:00:02]} 8. Nf3 {[%emt 0:00:02]} Qc7 {[%emt 0:00:03]} 9. Be2 {[%emt 0:00:02]} b6 {[%emt 0:00:01]} 10. O-O {[%emt 0:00:07]} Bb7 {[%emt 0:00:01]} 11. Bg5 {[%emt 0:00:09]} Rfd8 {[%emt 0:00:30]} 12. Rc1 {[%emt 0:00:03]} Ne5 {[%emt 0:00:40]} 13. Nd4 {[%emt 0:00:24]} Ng6 {[%emt 0:00:09]} 14. Bf3 {[%emt 0:01:09]} Ng4 {[%emt 0:00:16]} 15. Bxg4 {[%emt 0:00:01]} Bxg5 {[%emt 0:00:01]} 16. Rc2 {[%emt 0:00:03]} a6 {[%emt 0:00:02]} 17. g3 {[%emt 0:00:10]} Bf6 {[%emt 0:00:04]} 18. Be2 {[%emt 0:00:13]} Rac8 {[%emt 0:00:13]} 19. Rd2 {[%emt 0:00:02]} Ne5 {[%emt 0:00:05]} 20. Qb3 {[%emt 0:00:03]} Ba8 {[%emt 0:00:07]} 21. Rfd1 {[%emt 0:00:02]} Nxc4 {[%emt 0:00:29]} 22. Bxc4 {[%emt 0:00:02]} Qxc4 {[%emt 0:00:01]} 23. Qxb6 {[%emt 0:00:05]} Rb8 {[%emt 0:00:07]} 24. Qd6 {[%emt 0:00:06]} g6 {[%emt 0:00:17]} 25. Qf4 {[%emt 0:00:03]} Bg7 {[%emt 0:00:01]} 26. Nf3 {[%emt 0:00:04]} d5 {[%emt 0:00:06]} 27. Ng5 {[%emt 0:00:10]} Rf8 {[%emt 0:00:02]} 28. exd5 {[%emt 0:00:09]} Qxf4 {[%emt 0:00:03]} 29. gxf4 {[%emt 0:00:01]} exd5 {[%emt 0:00:01]} 30. Nxd5 {[%emt 0:00:02]} Bxb2 {[%emt 0:00:06]} 31. a4 {[%emt 0:00:03]} a5 {[%emt 0:00:08]} 32. Ne4 {[%emt 0:00:06]} Kg7 {[%emt 0:00:01]} 33. Nc5 {[%emt 0:00:05]} Rfd8 {[%emt 0:00:06]} 34. Nc7 {[%emt 0:00:03]} Rxd2 {[%emt 0:00:02]} 35. Rxd2 {[%emt 0:00:01]} Bc3 {[%emt 0:00:01]} 36. Rd1 {[%emt 0:00:01]} Bf3 {[%emt 0:00:01]} 37. Rc1 {[%emt 0:00:01]} Bd2 {[%emt 0:00:01]} 38. Ra1 {[%emt 0:00:03]} Rc8 {[%emt 0:00:04]} 39. N7a6 {[%emt 0:00:06]} Bxf4 {[%emt 0:00:02]} 40. Ra3 {[%emt 0:00:02]} Bc6 {[%emt 0:00:03]} 41. Rb3 {[%emt 0:00:02]} Re8 {[%emt 0:00:01]} 42. Kf1 {[%emt 0:00:02]} Bd5 {[%emt 0:00:00]} 43. Rc3 {[%emt 0:00:03]} Bxh2 {[%emt 0:00:04]} 44. Nd7 {[%emt 0:00:01]} h5 {[%emt 0:00:03]} 45. Nc7 {[%emt 0:00:03]} Bxc7 {[%emt 0:00:02]} 46. Rxc7 {[%emt 0:00:00]} Re7 {[%emt 0:00:01]} 1-0

[Event "RUS-ch Men Blitz 2019"]
[Site "Sochi"]
[Date "2019.10.17"]
[Round "7.10"]
[White "Gutenev, Alexander"]
[Black "Lysyj, Igor"]
[Result "0-1"]
[ECO "C78"]
[WhiteElo "2469"]
[BlackElo "2596"]
[Annotator "RC"]
[PlyCount "64"]
[EventDate "2019.10.17"]
[EventType "swiss"]
[EventCountry "RUS"]
[SourceTitle "playchess.com"]
[Source "ChessBase"]
[SourceQuality "1"]
[TimeControl "180+2"]

1. e4 {[%emt 0:00:00]} e5 {[%emt 0:00:00]} 2. Nf3 {[%emt 0:00:00]} Nc6 {[%emt 0:00:00]} 3. Bb5 {[%emt 0:00:01]} a6 {[%emt 0:00:01]} 4. Ba4 {[%emt 0:00:01]} Nf6 {[%emt 0:00:01]} 5. O-O {[%emt 0:00:02]} Bc5 {[%emt 0:00:01]} 6. d3 {[%emt 0:00:04]} d6 {[%emt 0:00:03]} 7. c3 {[%emt 0:00:08]} O-O {[%emt 0:00:03]} 8. h3 {[%emt 0:00:03]} Ne7 {[%emt 0:00:04]} 9. Be3 {[%emt 0:00:14]} Bxe3 {[%emt 0:00:07]} 10. fxe3 {[%emt 0:00:01]} Ng6 {[%emt 0:00:01]} 11. c4 {[%emt 0:00:27]} c6 {[%emt 0:00:04]} 12. Nc3 {[%emt 0:00:02]} h6 {[%emt 0:00:08]} 13. Qd2 {[%emt 0:00:25]} b5 {[%emt 0:00:08]} 14. cxb5 {[%emt 0:00:09]} axb5 {[%emt 0:00:02]} 15. Bb3 {[%emt 0:00:02]} Qb6 {[%emt 0:00:07]} 16. Kh2 {[%emt 0:00:06]} Be6 {[%emt 0:00:07]} 17. Bxe6 {[%emt 0:00:15]} fxe6 {[%emt 0:00:01]} 18. a3 {[%emt 0:00:31]} d5 {[%emt 0:00:48]} 19. exd5 {[%emt 0:00:01]} exd5 {[%emt 0:00:02]} 20. d4 {[%emt 0:00:01]} e4 {[%emt 0:00:09]} 21. Ng1 {[%emt 0:00:02]} Nh5 {[%emt 0:00:12]} 22. Nge2 {[%emt 0:00:01]} Nh4 {[%emt 0:00:07]} 23. Kg1 {[%emt 0:00:10]} Qc7 {[%emt 0:00:06]} 24. Nf4 {[%emt 0:00:28]} Nxf4 {[%emt 0:00:04]} 25. exf4 {[%emt 0:00:02]} Nf5 {[%emt 0:00:05]} 26. Ne2 {[%emt 0:00:01]} c5 {[%emt 0:00:10]} 27. Rac1 {[%emt 0:00:03]} c4 {[%emt 0:00:01]} 28. Rc3 {[%emt 0:00:19]} Rae8 {[%emt 0:00:05]} 29. Rd1 {[%emt 0:00:07]} e3 {[%emt 0:00:09]} 30. Qc1 {[%emt 0:00:04]} Qe7 {[%emt 0:00:05]} 31. Rf1 {[%emt 0:00:06]} Qe4 {[%emt 0:00:04]} 32. Qd1 {[%emt 0:00:04]} Nh4 {[%emt 0:00:03]} 0-1

[Event "RUS-ch Men Blitz 2019"]
[Site "Sochi"]
[Date "2019.10.17"]
[Round "7.11"]
[White "Yuffa, Daniil"]
[Black "Bryakin, Mikhail"]
[Result "1-0"]
[ECO "D15"]
[WhiteElo "2577"]
[BlackElo "2440"]
[Annotator "ChessBase"]
[PlyCount "61"]
[EventDate "2019.10.17"]
[EventType "swiss"]
[EventCountry "RUS"]
[SourceTitle "playchess.com"]
[Source "ChessBase"]
[SourceQuality "1"]
[TimeControl "180+2"]

1. d4 {[%emt 0:00:00]} Nf6 {[%emt 0:00:00]} 2. c4 c6 3. Nc3 d5 4. Nf3 {[%emt 0:00:04]} a6 {[%emt 0:00:03]} 5. e3 {[%emt 0:00:01]} b5 {[%emt 0:00:11]} 6. b3 {[%emt 0:00:02]} Bg4 {[%emt 0:00:04]} 7. a4 {[%emt 0:00:01]} bxc4 {[%emt 0:00:08]} 8. bxc4 {[%emt 0:00:01]} e6 {[%emt 0:00:00]} 9. c5 {[%emt 0:00:12]} Nbd7 {[%emt 0:00:01]} 10. a5 {[%emt 0:00:02]} e5 {[%emt 0:00:12]} 11. Qa4 {[%emt 0:00:02]} Bxf3 {[%emt 0:00:09]} 12. gxf3 {[%emt 0:00:01]} Qc7 {[%emt 0:00:10]} 13. Rb1 {[%emt 0:00:22]} Be7 {[%emt 0:00:08]} 14. Bh3 {[%emt 0:00:06]} O-O {[%emt 0:00:08]} 15. O-O {[%emt 0:00:02]} exd4 {[%emt 0:00:02]} 16. exd4 {[%emt 0:00:01]} Rad8 {[%emt 0:00:43]} 17. Bg5 {[%emt 0:00:10]} Rfe8 {[%emt 0:00:01]} 18. Bh4 {[%emt 0:00:06]} Nh5 {[%emt 0:00:04]} 19. Bg3 {[%emt 0:00:08]} Nxg3 {[%emt 0:00:11]} 20. hxg3 {[%emt 0:00:03]} Bf6 {[%emt 0:00:11]} 21. Bxd7 {[%emt 0:00:03]} Qxd7 {[%emt 0:00:05]} 22. Rb6 {[%emt 0:00:02]} Qf5 {[%emt 0:00:01]} 23. Qd1 {[%emt 0:00:36]} h5 {[%emt 0:00:00]} 24. Rxc6 {[%emt 0:00:08]} h4 {[%emt 0:00:01]} 25. Kg2 {[%emt 0:00:49]} hxg3 {[%emt 0:00:01]} 26. fxg3 {[%emt 0:00:01]} Re3 {[%emt 0:00:01]} 27. Ne2 {[%emt 0:00:00]} Rde8 {[%emt 0:00:24]} 28. Rf2 {[%emt 0:00:01]} Rd3 {[%emt 0:00:37]} 29. Qc2 {[%emt 0:00:01]} Rxe2 {[%emt 0:00:14]} 30. Qxe2 {[%emt 0:00:05]} Bxd4 {[%emt 0:00:01]} 31. g4 {[%emt 0:00:11]} 1-0

[Event "RUS-ch Men Blitz 2019"]
[Site "Sochi"]
[Date "2019.10.17"]
[Round "7.12"]
[White "Khegay, Dmitriy"]
[Black "Smagin, Sergey"]
[Result "1-0"]
[ECO "C50"]
[WhiteElo "2509"]
[BlackElo "2551"]
[Annotator "ChessBase"]
[PlyCount "71"]
[EventDate "2019.10.17"]
[EventType "swiss"]
[EventCountry "RUS"]
[SourceTitle "playchess.com"]
[Source "ChessBase"]
[SourceQuality "1"]
[TimeControl "180+2"]

1. e4 {[%emt 0:00:00]} e5 {[%emt 0:00:00]} 2. Nf3 {[%emt 0:00:00]} Nc6 {[%emt 0:00:01]} 3. Bc4 {[%emt 0:00:02]} Nf6 {[%emt 0:00:01]} 4. d3 {[%emt 0:00:01]} Bc5 {[%emt 0:00:02]} 5. c3 {[%emt 0:00:00]} O-O {[%emt 0:00:10]} 6. Bb3 {[%emt 0:00:05]} a6 {[%emt 0:00:02]} 7. Nbd2 {[%emt 0:00:03]} Ba7 {[%emt 0:00:02]} 8. Nf1 {[%emt 0:00:12]} d5 {[%emt 0:00:06]} 9. exd5 {[%emt 0:00:02]} Nxd5 {[%emt 0:00:01]} 10. Ng3 {[%emt 0:00:00]} Nf4 {[%emt 0:00:14]} 11. Bxf4 {[%emt 0:00:10]} exf4 {[%emt 0:00:01]} 12. Ne4 {[%emt 0:00:06]} Na5 {[%emt 0:00:07]} 13. O-O {[%emt 0:00:07]} Nxb3 {[%emt 0:00:02]} 14. axb3 {[%emt 0:00:03]} f5 {[%emt 0:00:06]} 15. Neg5 {[%emt 0:00:20]} h6 {[%emt 0:00:02]} 16. Nh3 {[%emt 0:00:01]} g5 {[%emt 0:00:00]} 17. Ne5 {[%emt 0:00:06]} c5 {[%emt 0:00:26]} 18. Qh5 {[%emt 0:00:03]} Qf6 {[%emt 0:00:48]} 19. Ng6 {[%emt 0:00:09]} Rf7 {[%emt 0:00:00]} 20. Rae1 Bd7 21. Qxh6 {[%emt 0:00:54]} Rh7 {[%emt 0:00:01]} 22. Qxg5 {[%emt 0:00:30]} Qxg5 {[%emt 0:00:01]} 23. Nxg5 {[%emt 0:00:01]} Rg7 {[%emt 0:00:00]} 24. Ne5 {[%emt 0:00:00]} Rxg5 {[%emt 0:00:47]} 25. Nxd7 {[%emt 0:00:01]} f3 {[%emt 0:00:01]} 26. g3 {[%emt 0:00:02]} f4 {[%emt 0:00:04]} 27. Ne5 {[%emt 0:00:07]} fxg3 {[%emt 0:00:01]} 28. hxg3 {[%emt 0:00:01]} c4 {[%emt 0:00:05]} 29. d4 {[%emt 0:00:02]} cxb3 {[%emt 0:00:04]} 30. Nxf3 {[%emt 0:00:02]} Ra5 {[%emt 0:00:01]} 31. Nd2 {[%emt 0:00:04]} Ra2 {[%emt 0:00:01]} 32. Rb1 {[%emt 0:00:01]} Re8 {[%emt 0:00:02]} 33. Nxb3 Re2 34. Nc1 {[%emt 0:00:06]} Rexb2 {[%emt 0:00:05]} 35. Nxa2 {[%emt 0:00:01]} Rxa2 {[%emt 0:00:01]} 36. Rxb7 {[%emt 0:00:01]} 1-0

[Event "RUS-ch Men Blitz 2019"]
[Site "Sochi"]
[Date "2019.10.17"]
[Round "7.13"]
[White "Goltsev, Dmitry"]
[Black "Potapov, Pavel"]
[Result "0-1"]
[ECO "B32"]
[WhiteElo "2309"]
[BlackElo "2489"]
[Annotator "ChessBase"]
[PlyCount "79"]
[EventDate "2019.10.17"]
[EventType "swiss"]
[EventCountry "RUS"]
[SourceTitle "playchess.com"]
[Source "ChessBase"]
[SourceQuality "1"]
[TimeControl "180+2"]

1. e4 {[%emt 0:00:00]} c5 {[%emt 0:00:00]} 2. Nf3 {[%emt 0:00:00]} Nc6 {[%emt 0:00:00]} 3. d4 {[%emt 0:00:00]} cxd4 {[%emt 0:00:01]} 4. Nxd4 {[%emt 0:00:02]} e5 {[%emt 0:00:00]} 5. Nb5 {[%emt 0:00:05]} d6 {[%emt 0:00:02]} 6. N1c3 {[%emt 0:00:02]} a6 {[%emt 0:00:01]} 7. Na3 {[%emt 0:00:01]} Be7 {[%emt 0:00:01]} 8. Nd5 {[%emt 0:00:25]} Nf6 {[%emt 0:00:02]} 9. Be3 {[%emt 0:00:11]} Nxd5 {[%emt 0:00:15]} 10. exd5 {[%emt 0:00:02]} Nb8 {[%emt 0:00:01]} 11. c4 {[%emt 0:00:03]} O-O {[%emt 0:00:02]} 12. Be2 {[%emt 0:00:13]} f5 {[%emt 0:00:01]} 13. f3 {[%emt 0:00:10]} Bh4+ {[%emt 0:00:04]} 14. g3 {[%emt 0:00:05]} Bg5 {[%emt 0:00:02]} 15. Bxg5 {[%emt 0:00:13]} Qxg5 {[%emt 0:00:01]} 16. Qd2 {[%emt 0:00:02]} f4 {[%emt 0:00:11]} 17. O-O-O {[%emt 0:00:11]} Nd7 {[%emt 0:00:08]} 18. Nb1 {[%emt 0:00:11]} Nc5 {[%emt 0:00:03]} 19. Nc3 {[%emt 0:00:03]} Bd7 {[%emt 0:00:08]} 20. Rdg1 {[%emt 0:00:24]} Qe7 {[%emt 0:00:06]} 21. Bd3 {[%emt 0:00:17]} b5 {[%emt 0:00:06]} 22. Qc2 {[%emt 0:00:20]} Nxd3+ {[%emt 0:00:17]} 23. Qxd3 {[%emt 0:00:03]} bxc4 {[%emt 0:00:02]} 24. Qxc4 {[%emt 0:00:01]} a5 {[%emt 0:00:12]} 25. Rg2 {[%emt 0:00:05]} Rac8 {[%emt 0:00:07]} 26. Qe4 {[%emt 0:00:15]} Bf5 {[%emt 0:00:07]} 27. Qa4 {[%emt 0:00:02]} Qa7 {[%emt 0:00:06]} 28. Re1 {[%emt 0:00:14]} fxg3 {[%emt 0:00:13]} 29. hxg3 {[%emt 0:00:10]} Bg6 {[%emt 0:00:05]} 30. f4 {[%emt 0:00:04]} Qd4 {[%emt 0:00:08]} 31. Qxa5 {[%emt 0:00:03]} exf4 {[%emt 0:00:05]} 32. Rd2 {[%emt 0:00:01]} Qf6 {[%emt 0:00:07]} 33. gxf4 {[%emt 0:00:01]} Qxf4 {[%emt 0:00:02]} 34. Qa7 {[%emt 0:00:03]} Qf5 {[%emt 0:00:06]} 35. Kd1 {[%emt 0:00:03]} Rxc3 {[%emt 0:00:04]} 36. bxc3 {[%emt 0:00:01]} Qb1+ {[%emt 0:00:01]} 37. Ke2 {[%emt 0:00:03]} Bh5+ {[%emt 0:00:03]} 38. Ke3 {[%emt 0:00:03]} Qxe1+ {[%emt 0:00:02]} 39. Kd3 {[%emt 0:00:01]} Bg6+ {[%emt 0:00:05]} 40. Kd4 0-1

[Event "RUS-ch Men Blitz 2019"]
[Site "Sochi"]
[Date "2019.10.17"]
[Round "7.14"]
[White "Rozum, Ivan"]
[Black "Dianov, Alexey"]
[Result "1-0"]
[ECO "B01"]
[WhiteElo "2599"]
[BlackElo "2158"]
[Annotator "ChessBase"]
[PlyCount "61"]
[EventDate "2019.10.17"]
[EventType "swiss"]
[EventCountry "RUS"]
[SourceTitle "playchess.com"]
[Source "ChessBase"]
[SourceQuality "1"]
[TimeControl "180+2"]

1. e4 {[%emt 0:00:00]} d5 {[%emt 0:00:00]} 2. exd5 {[%emt 0:00:00]} Qxd5 {[%emt 0:00:00]} 3. Nc3 {[%emt 0:00:02]} Qd8 {[%emt 0:00:02]} 4. d4 {[%emt 0:00:01]} Nf6 {[%emt 0:00:01]} 5. Nf3 {[%emt 0:00:02]} Bg4 {[%emt 0:00:01]} 6. h3 {[%emt 0:00:02]} Bxf3 {[%emt 0:00:04]} 7. Qxf3 {[%emt 0:00:01]} c6 {[%emt 0:00:01]} 8. Bd3 {[%emt 0:00:05]} Qxd4 {[%emt 0:00:07]} 9. O-O {[%emt 0:00:01]} e6 {[%emt 0:00:02]} 10. Ne4 {[%emt 0:00:04]} Be7 {[%emt 0:00:13]} 11. Rd1 {[%emt 0:00:04]} Nxe4 {[%emt 0:00:02]} 12. Bxe4 {[%emt 0:00:02]} Qf6 {[%emt 0:00:01]} 13. Qb3 {[%emt 0:00:06]} b6 {[%emt 0:00:15]} 14. a4 {[%emt 0:00:21]} O-O {[%emt 0:00:12]} 15. Be3 {[%emt 0:00:04]} Rc8 {[%emt 0:00:20]} 16. a5 {[%emt 0:00:11]} Na6 {[%emt 0:00:28]} 17. axb6 {[%emt 0:00:01]} axb6 {[%emt 0:00:03]} 18. Qxb6 {[%emt 0:00:02]} Nb4 {[%emt 0:00:18]} 19. Rxa8 {[%emt 0:00:06]} Rxa8 {[%emt 0:00:01]} 20. Qb7 {[%emt 0:00:38]} Re8 {[%emt 0:00:18]} 21. Bd4 {[%emt 0:00:09]} Qh4 {[%emt 0:00:10]} 22. Bxc6 {[%emt 0:00:13]} Nxc6 {[%emt 0:00:10]} 23. Qxc6 {[%emt 0:00:01]} Rd8 {[%emt 0:00:03]} 24. g3 {[%emt 0:01:03]} Qxh3 {[%emt 0:00:26]} 25. Qc7 {[%emt 0:00:02]} Bf6 {[%emt 0:00:07]} 26. c3 {[%emt 0:00:05]} e5 {[%emt 0:00:06]} 27. Re1 {[%emt 0:00:01]} Rc8 {[%emt 0:00:11]} 28. Rxe5 {[%emt 0:00:11]} Bxe5 {[%emt 0:00:04]} 29. Qxe5 {[%emt 0:00:01]} Qh6 {[%emt 0:00:04]} 30. b4 {[%emt 0:00:04]} Qg6 {[%emt 0:00:05]} 31. b5 {[%emt 0:00:02]} 1-0

[Event "RUS-ch Men Blitz 2019"]
[Site "Sochi"]
[Date "2019.10.17"]
[Round "7.15"]
[White "Timofeev, Artyom"]
[Black "Apryshko, Gleb"]
[Result "1-0"]
[ECO "A20"]
[WhiteElo "2595"]
[BlackElo "2382"]
[Annotator "RC"]
[PlyCount "141"]
[EventDate "2019.10.17"]
[EventType "swiss"]
[EventCountry "RUS"]
[SourceTitle "playchess.com"]
[Source "ChessBase"]
[SourceQuality "1"]
[TimeControl "180+2"]

1. c4 {[%emt 0:00:00]} e5 {[%emt 0:00:00]} 2. e3 {[%emt 0:00:02]} Nc6 {[%emt 0:00:04]} 3. Nc3 {[%emt 0:00:01]} Nf6 {[%emt 0:00:27]} 4. d3 {[%emt 0:00:02]} Bc5 {[%emt 0:00:13]} 5. Nf3 {[%emt 0:00:03]} d6 {[%emt 0:00:00]} 6. g3 {[%emt 0:00:03]} a6 {[%emt 0:00:06]} 7. Bg2 {[%emt 0:00:01]} O-O {[%emt 0:00:01]} 8. O-O {[%emt 0:00:02]} h6 {[%emt 0:00:08]} 9. h3 {[%emt 0:00:02]} Rb8 {[%emt 0:00:07]} 10. b3 {[%emt 0:00:03]} b5 {[%emt 0:00:04]} 11. Bb2 {[%emt 0:00:04]} e4 {[%emt 0:00:07]} 12. Nd2 {[%emt 0:00:24]} bxc4 {[%emt 0:00:14]} 13. dxc4 {[%emt 0:00:06]} Ne5 {[%emt 0:00:06]} 14. Ncxe4 {[%emt 0:00:03]} Nxe4 {[%emt 0:00:04]} 15. Nxe4 {[%emt 0:00:06]} Nxc4 {[%emt 0:00:02]} 16. Nxc5 {[%emt 0:00:27]} Nxb2 {[%emt 0:00:03]} 17. Qc2 {[%emt 0:00:02]} dxc5 {[%emt 0:00:05]} 18. Qxb2 {[%emt 0:00:02]} c4 {[%emt 0:00:03]} 19. Qc3 {[%emt 0:00:02]} cxb3 {[%emt 0:00:10]} 20. axb3 {[%emt 0:00:01]} Be6 {[%emt 0:00:03]} 21. Rxa6 {[%emt 0:00:02]} Rxb3 {[%emt 0:00:05]} 22. Qc2 {[%emt 0:00:01]} Qc8 {[%emt 0:00:16]} 23. Rc6 {[%emt 0:00:07]} Rb7 {[%emt 0:00:25]} 24. Rxe6 {[%emt 0:00:01]} fxe6 {[%emt 0:00:02]} 25. Bxb7 {[%emt 0:00:02]} Qxb7 {[%emt 0:00:00]} 26. Rc1 {[%emt 0:00:01]} Qf3 {[%emt 0:00:03]} 27. Qd2 {[%emt 0:00:06]} Rf7 {[%emt 0:00:10]} 28. Rc2 {[%emt 0:00:02]} h5 {[%emt 0:00:17]} 29. h4 {[%emt 0:00:01]} Kh7 {[%emt 0:00:03]} 30. Qd3+ {[%emt 0:00:02]} Rf5 {[%emt 0:00:09]} 31. Rd2 {[%emt 0:00:27]} c5 {[%emt 0:00:05]} 32. Qc4 {[%emt 0:00:28]} Re5 {[%emt 0:00:12]} 33. Qf4 {[%emt 0:00:13]} Qe4 {[%emt 0:00:01]} 34. Qxe4+ {[%emt 0:00:07]} Rxe4 {[%emt 0:00:00]} 35. Rd6 {[%emt 0:00:01]} Kg6 {[%emt 0:00:06]} 36. Rc6 {[%emt 0:00:01]} Re5 {[%emt 0:00:03]} 37. Kg2 {[%emt 0:00:02]} Kf6 {[%emt 0:00:01]} 38. Kf3 {[%emt 0:00:01]} Rd5 {[%emt 0:00:05]} 39. Ke4 {[%emt 0:00:03]} Rd2 {[%emt 0:00:02]} 40. f3 {[%emt 0:00:09]} Rd5 {[%emt 0:00:03]} 41. g4 {[%emt 0:00:07]} hxg4 {[%emt 0:00:04]} 42. fxg4 {[%emt 0:00:01]} g5 43. h5 {[%emt 0:00:02]} Re5+ {[%emt 0:00:04]} 44. Kd3 {[%emt 0:00:01]} Rd5+ {[%emt 0:00:01]} 45. Ke4 {[%emt 0:00:07]} Re5+ {[%emt 0:00:00]} 46. Kf3 {[%emt 0:00:01]} Rd5 {[%emt 0:00:01]} 47. Rc8 {[%emt 0:00:01]} Re5 {[%emt 0:00:06]} 48. Rg8 {[%emt 0:00:08]} Kf7 {[%emt 0:00:01]} 49. Rc8 {[%emt 0:00:02]} Kg7 {[%emt 0:00:01]} 50. e4 {[%emt 0:00:03]} Kf7 {[%emt 0:00:04]} 51. Ke3 {[%emt 0:00:01]} Kg7 {[%emt 0:00:01]} 52. Kd3 {[%emt 0:00:01]} Kf7 {[%emt 0:00:00]} 53. Rc7+ {[%emt 0:00:03]} Kg8 {[%emt 0:00:04]} 54. Re7 {[%emt 0:00:02]} Kf8 {[%emt 0:00:01]} 55. Rc7 {[%emt 0:00:02]} Kg8 {[%emt 0:00:00]} 56. h6 {[%emt 0:00:05]} Kh8 {[%emt 0:00:00]} 57. h7 c4+ 58. Kd4 {[%emt 0:00:11]} Ra5 {[%emt 0:00:01]} 59. Kxc4 {[%emt 0:00:07]} Ra4+ {[%emt 0:00:00]} 60. Kd3 {[%emt 0:00:02]} e5 {[%emt 0:00:09]} 61. Re7 {[%emt 0:00:01]} Ra3+ {[%emt 0:00:01]} 62. Kc4 {[%emt 0:00:01]} Rg3 {[%emt 0:00:03]} 63. Rxe5 {[%emt 0:00:02]} Rxg4 {[%emt 0:00:00]} 64. Re7 {[%emt 0:00:02]} Rg1 {[%emt 0:00:04]} 65. e5 {[%emt 0:00:02]} Rd1 {[%emt 0:00:03]} 66. e6 {[%emt 0:00:01]} g4 {[%emt 0:00:04]} 67. Rf7 {[%emt 0:00:03]} g3 {[%emt 0:00:03]} 68. e7 {[%emt 0:00:01]} Rc1+ {[%emt 0:00:01]} 69. Kd3 {[%emt 0:00:01]} Re1 {[%emt 0:00:01]} 70. Rf8+ {[%emt 0:00:02]} Kxh7 {[%emt 0:00:02]} 71. e8=Q {[%emt 0:00:02]} 1-0

[Event "RUS-ch Men Blitz 2019"]
[Site "Sochi"]
[Date "2019.10.17"]
[Round "7.18"]
[White "Denishev, Marat"]
[Black "Lugovskoy, Maxim"]
[Result "0-1"]
[ECO "D02"]
[WhiteElo "2167"]
[BlackElo "2436"]
[Annotator "NA"]
[PlyCount "57"]
[EventDate "2019.10.17"]
[EventType "swiss"]
[EventCountry "RUS"]
[SourceTitle "playchess.com"]
[Source "ChessBase"]
[SourceQuality "1"]
[TimeControl "180+2"]

1. d4 {[%emt 0:00:00]} d5 {[%emt 0:00:00]} 2. Nf3 {[%emt 0:00:00]} e6 {[%emt 0:00:00]} 3. c4 {[%emt 0:00:02]} a6 {[%emt 0:00:00]} 4. cxd5 {[%emt 0:00:05]} exd5 {[%emt 0:00:01]} 5. Nc3 {[%emt 0:00:02]} c6 {[%emt 0:00:00]} 6. Bf4 {[%emt 0:00:05]} Bd6 {[%emt 0:00:01]} 7. g3 {[%emt 0:00:12]} Ne7 {[%emt 0:00:10]} 8. e3 {[%emt 0:00:03]} Ng6 {[%emt 0:00:04]} 9. Bd3 {[%emt 0:00:09]} Qe7 {[%emt 0:00:12]} 10. Bxd6 {[%emt 0:00:08]} Qxd6 {[%emt 0:00:01]} 11. Qc2 {[%emt 0:00:07]} Bg4 {[%emt 0:00:04]} 12. Be2 {[%emt 0:00:15]} Nd7 {[%emt 0:00:03]} 13. h3 {[%emt 0:00:02]} Bxf3 {[%emt 0:00:11]} 14. Bxf3 {[%emt 0:00:02]} O-O {[%emt 0:00:01]} 15. h4 {[%emt 0:00:07]} Rfe8 {[%emt 0:00:04]} 16. h5 {[%emt 0:00:04]} Ngf8 {[%emt 0:00:00]} 17. O-O {[%emt 0:00:15]} Nf6 {[%emt 0:00:08]} 18. Kg2 {[%emt 0:00:03]} h6 {[%emt 0:00:01]} 19. Ne2 {[%emt 0:00:06]} Ne6 {[%emt 0:00:01]} 20. Nf4 {[%emt 0:00:27]} Ng5 {[%emt 0:00:04]} 21. Be2 {[%emt 0:00:06]} Re7 {[%emt 0:00:01]} 22. Nd3 {[%emt 0:00:17]} Nd7 {[%emt 0:00:03]} 23. Bg4 {[%emt 0:00:22]} Nf6 {[%emt 0:00:05]} 24. Be2 {[%emt 0:00:08]} Nd7 {[%emt 0:00:02]} 25. Bg4 {[%emt 0:00:02]} Rae8 {[%emt 0:00:01]} 26. Bxd7 {[%emt 0:00:06]} Qxd7 {[%emt 0:00:00]} 27. Ne5 {[%emt 0:00:08]} Qh3+ {[%emt 0:00:03]} 28. Kg1 {[%emt 0:00:05]} Rxe5 {[%emt 0:00:01]} 29. Qd1 0-1

[Event "RUS-ch Men Blitz 2019"]
[Site "Sochi"]
[Date "2019.10.17"]
[Round "7.19"]
[White "Papin, Vasily"]
[Black "Linker, Mikhail"]
[Result "1-0"]
[ECO "E63"]
[WhiteElo "2481"]
[BlackElo "2269"]
[Annotator "ChessBase"]
[PlyCount "71"]
[EventDate "2019.10.17"]
[EventType "swiss"]
[EventCountry "RUS"]
[SourceTitle "playchess.com"]
[Source "ChessBase"]
[SourceQuality "1"]
[TimeControl "180+2"]

1. c4 {[%emt 0:00:00]} Nf6 {[%emt 0:00:00]} 2. Nc3 {[%emt 0:00:00]} g6 {[%emt 0:00:00]} 3. g3 {[%emt 0:00:01]} Bg7 {[%emt 0:00:01]} 4. Bg2 {[%emt 0:00:01]} O-O {[%emt 0:00:01]} 5. d4 {[%emt 0:00:01]} d6 {[%emt 0:00:03]} 6. Nf3 {[%emt 0:00:01]} Nc6 {[%emt 0:00:03]} 7. O-O {[%emt 0:00:02]} a6 {[%emt 0:00:01]} 8. Bf4 {[%emt 0:00:01]} Rb8 {[%emt 0:00:01]} 9. Rc1 {[%emt 0:00:01]} Bd7 {[%emt 0:00:02]} 10. Qd2 {[%emt 0:00:01]} e6 {[%emt 0:00:05]} 11. Bh6 {[%emt 0:00:24]} b5 {[%emt 0:00:37]} 12. Bxg7 {[%emt 0:00:02]} Kxg7 {[%emt 0:00:01]} 13. cxb5 {[%emt 0:00:12]} axb5 {[%emt 0:00:02]} 14. d5 {[%emt 0:00:00]} Ne7 {[%emt 0:00:26]} 15. dxe6 {[%emt 0:00:06]} Bxe6 {[%emt 0:00:01]} 16. b3 {[%emt 0:00:08]} c5 {[%emt 0:00:06]} 17. Ng5 {[%emt 0:00:19]} d5 {[%emt 0:00:10]} 18. Rfd1 {[%emt 0:00:10]} d4 {[%emt 0:00:05]} 19. Nxe6+ {[%emt 0:00:06]} fxe6 {[%emt 0:00:01]} 20. Ne4 {[%emt 0:00:00]} Nxe4 {[%emt 0:00:04]} 21. Bxe4 {[%emt 0:00:02]} Qd6 {[%emt 0:00:37]} 22. b4 {[%emt 0:00:01]} Qe5 {[%emt 0:00:01]} 23. Bf3 {[%emt 0:00:08]} Qf6 {[%emt 0:00:31]} 24. bxc5 {[%emt 0:00:23]} e5 {[%emt 0:00:02]} 25. c6 {[%emt 0:00:06]} Rbc8 {[%emt 0:00:26]} 26. c7 {[%emt 0:00:10]} Qd6 {[%emt 0:00:02]} 27. Qa5 {[%emt 0:00:06]} Nd5 {[%emt 0:00:10]} 28. Qxb5 {[%emt 0:00:12]} Nxc7 {[%emt 0:00:02]} 29. Qb7 {[%emt 0:00:03]} Kh8 {[%emt 0:00:05]} 30. Bg4 {[%emt 0:00:02]} Qf6 {[%emt 0:00:07]} 31. Bxc8 {[%emt 0:00:06]} Qxf2+ 32. Kh1 Qxe2 {[%emt 0:00:04]} 33. Re1 {[%emt 0:00:23]} Qd2 {[%emt 0:00:05]} 34. Qxc7 {[%emt 0:00:10]} Rf2 {[%emt 0:00:01]} 35. Qxe5+ {[%emt 0:00:03]} Kg8 {[%emt 0:00:01]} 36. Be6+ {[%emt 0:00:04]} 1-0